fUSD/lending_fUSD_20240916
["ID","MTS","AMOUNT","RATE_DAILY","PERIOD"]
[338302286,1726487446796,-395.05746304,0.00014794,2]
[338302291,1726487446834,-104.94253696,0.00014794,2]
[338302293,1726487446844,-500.0,0.00014794,2]
[338302295,1726487446853,-500.0,0.00014794,2]
[338302297,1726487446863,-500.0,0.00014794,2]
[338302299,1726487446873,-500.0,0.00014794,2]
[338302301,1726487446882,-178.84322181,0.00014794,2]
[338302304,1726487446897,-321.15677819,0.00014794,2]
[338302306,1726487446907,-76.56587697,0.00014794,2]
[338302308,1726487446919,-423.43412303,0.00014794,2]
[338302310,1726487446929,-141.70077897,0.00014794,2]
[338302312,1726487446944,-358.29922103,0.00014794,2]
[338302314,1726487446954,-500.0,0.00014794,2]
[338302316,1726487446963,-512.8,0.00014794,2]
[338302318,1726487446973,-500.0,0.00014794,2]
[338302320,1726487446982,-500.0,0.00014794,2]
[338302322,1726487446992,-500.0,0.00014794,2]
[338302324,1726487447001,-500.0,0.00014794,2]
[338302326,1726487447011,-500.0,0.00014794,2]
[338302328,1726487447020,-500.0,0.00014794,2]
[338302330,1726487447029,-500.0,0.00014794,2]
[338302332,1726487447038,-500.0,0.00014794,2]
[338302334,1726487447048,-500.0,0.00014794,2]
[338302336,1726487447057,-77.61186759,0.00014794,2]
[338302339,1726487447080,-422.38813241,0.00014794,2]
[338302341,1726487447089,-500.0,0.00014794,2]
[338302343,1726487447098,-27.26186759,0.00014794,2]
[338302394,1726487489900,1064.68,0.0002798,120]
[338302395,1726487528492,2378.54,0.00028,120]
[338302397,1726487608624,-250.0,0.00013712,2]
[338302398,1726487608647,-750.0,0.00013728,2]
[338302399,1726487608785,221.919613,0.00027826,120]
[338302400,1726487613987,2000.0,0.00025155,120]
[338302401,1726487614845,2000.0,0.00026045,120]
[338302402,1726487617002,2000.0,0.00026936,120]
[338302403,1726487617898,2000.0,0.00027826,120]
[338302404,1726487643969,500.0,0.00025639,120]
[338302405,1726487644497,500.0,0.00026732,120]
[338302406,1726487644959,500.0,0.00027826,120]
[338302407,1726487653451,500.0,0.00025636,120]
[338302408,1726487653940,500.0,0.00026366,120]
[338302409,1726487654446,500.0,0.00027096,120]
[338302410,1726487655051,500.0,0.00027826,120]
[338302411,1726487669188,500.0,0.00028,120]
[338302412,1726487687610,200.0,0.00025676,120]
[338302413,1726487688276,200.0,0.00027826,120]
[338302414,1726487688759,500.0,0.00028,120]
[338302415,1726487692847,1050.0,0.00011,2]
[338302416,1726487695983,500.0,0.00028,120]
[338302417,1726487697030,500.0,0.00028,120]
[338302418,1726487698366,500.0,0.00028,120]
[338302419,1726487699196,500.0,0.00028,120]
[338302420,1726487700032,500.0,0.00028,120]
[338302421,1726487700847,500.0,0.00028,120]
[338302422,1726487708633,500.0,0.00028,120]
[338302423,1726487709143,500.0,0.00028,120]
[338302424,1726487710244,500.0,0.00028,120]
[338302425,1726487711086,500.0,0.00028,120]
[338302426,1726487711824,500.0,0.00028,120]
[338302427,1726487712463,500.0,0.00028,120]
[338302428,1726487713059,500.0,0.00028,120]
[338302429,1726487714139,500.0,0.00028,120]
[338302430,1726487714379,500.0,0.00028,120]
[338302431,1726487715169,500.0,0.00028,120]
[338302432,1726487715784,500.0,0.00028,120]
[338302433,1726487716367,500.0,0.00028,120]
[338302434,1726487717497,500.0,0.00028,120]
[338302435,1726487717848,500.0,0.00028,120]
[338302436,1726487718535,500.0,0.00028,120]
[338302437,1726487718940,500.0,0.00028,120]
[338302438,1726487719764,500.0,0.00028,120]
[338302439,1726487720715,500.0,0.00028,120]
[338302440,1726487721580,500.0,0.00028,120]
[338302441,1726487722417,500.0,0.00028,120]
[338302442,1726487723732,500.0,0.00028,120]
[338302443,1726487724779,500.0,0.00028,120]
[338302444,1726487724856,500.0,0.00028,120]
[338302445,1726487726174,500.0,0.00028,120]
[338302446,1726487727207,500.0,0.00028,120]
[338302447,1726487727814,500.0,0.00028,120]
[338302448,1726487728463,500.0,0.00028,120]
[338302449,1726487729135,500.0,0.00028,120]
[338302450,1726487729685,500.0,0.00028,120]
[338302451,1726487730226,500.0,0.00028,120]
[338302452,1726487731294,500.0,0.00028,120]
[338302453,1726487731361,500.0,0.00028,120]
[338302454,1726487732056,500.0,0.00028,120]
[338302455,1726487732585,500.0,0.00028,120]
[338302456,1726487733082,500.0,0.00028,120]
[338302457,1726487733486,500.0,0.00028,120]
[338302458,1726487734016,500.0,0.00028,120]
[338302459,1726487734434,500.0,0.00028,120]
[338302460,1726487735241,500.0,0.00028,120]
[338302461,1726487735316,500.0,0.00028,120]
[338302462,1726487735684,500.0,0.00028,120]
[338302463,1726487736073,500.0,0.00028,120]
[338302464,1726487748916,500.0,0.00028,120]
[338302465,1726487749934,500.0,0.00028,120]
[338302466,1726487750746,500.0,0.00028,120]
[338302467,1726487751563,500.0,0.00028,120]
[338302468,1726487752372,500.0,0.00028,120]
[338302469,1726487753089,500.0,0.00028,120]
[338302470,1726487753810,500.0,0.00028,120]
[338302471,1726487754636,500.0,0.00028,120]
[338302472,1726487755552,500.0,0.00028,120]
[338302473,1726487756793,500.0,0.00028,120]
[338302474,1726487757835,500.0,0.00028,120]
[338302475,1726487758598,500.0,0.00028,120]
[338302476,1726487759288,500.0,0.00028,120]
[338302477,1726487759975,500.0,0.00028,120]
[338302478,1726487760596,500.0,0.00028,120]
[338302479,1726487761028,500.0,0.00028,120]
[338302480,1726487761887,500.0,0.00028,120]
[338302481,1726487761953,500.0,0.00028,120]
[338302482,1726487803055,500.0,0.00028,120]
[338302483,1726487804025,500.0,0.00028,120]
[338302484,1726487804935,500.0,0.00028,120]
[338302485,1726487805586,500.0,0.00028,120]
[338302486,1726487806342,500.0,0.00028,120]
[338302487,1726487807013,500.0,0.00028,120]
[338302488,1726487807697,500.0,0.00028,120]
[338302489,1726487808323,500.0,0.00028,120]
[338302490,1726487808901,500.0,0.00028,120]
[338302491,1726487810373,500.0,0.00028,120]
[338302492,1726487811563,500.0,0.00028,120]
[338302493,1726487811828,500.0,0.00028,120]
[338302494,1726487812533,500.0,0.00028,120]
[338302495,1726487813070,500.0,0.00028,120]
[338302496,1726487813311,500.0,0.00028,120]
[338302497,1726487814031,500.0,0.00028,120]
[338302498,1726487814395,500.0,0.00028,120]
[338302499,1726487814698,500.0,0.00028,120]
[338302500,1726487815118,500.0,0.00028,120]
[338302501,1726487815517,500.0,0.00028,120]
[338302502,1726487817146,500.0,0.00028,120]
[338302503,1726487817411,500.0,0.00028,120]
[338302504,1726487818024,500.0,0.00028,120]
[338302505,1726487818194,500.0,0.00028,120]
[338302506,1726487818657,500.0,0.00028,120]
[338302507,1726487824132,500.0,0.00028,120]
[338302508,1726487824753,500.0,0.00028,120]
[338302521,1726487828837,500.0,0.00028,120]
[338302524,1726487829407,500.0,0.00028,120]
[338302527,1726487829995,500.0,0.00028,120]
[338302529,1726487830563,500.0,0.00028,120]
[338302533,1726487830996,500.0,0.00028,120]
[338302535,1726487831342,500.0,0.00028,120]
[338302538,1726487831717,500.0,0.00028,120]
[338302540,1726487832144,500.0,0.00028,120]
[338302541,1726487832735,500.0,0.00028,120]
[338302542,1726487832948,500.0,0.00028,120]
[338302543,1726487833327,500.0,0.00028,120]
[338302544,1726487833583,500.0,0.00028,120]
[338302545,1726487833933,500.0,0.00028,120]
[338302546,1726487834366,500.0,0.00028,120]
[338302547,1726487834796,500.0,0.00028,120]
[338302548,1726487835135,500.0,0.00028,120]
[338302549,1726487835559,500.0,0.00028,120]
[338302550,1726487836163,500.0,0.00028,120]
[338302551,1726487836643,500.0,0.00028,120]
[338302552,1726487836795,500.0,0.00028,120]
[338302553,1726487837337,500.0,0.00028,120]
[338302554,1726487839270,500.0,0.00028,120]
[338302555,1726487884081,181.03,0.00010959,2]
[338302556,1726487897908,-250.0,0.00013696,2]
[338302557,1726487897932,-171.04,0.00013705,2]
[338302558,1726487897954,-578.96,0.0001371,2]
[338302559,1726487904805,500.0,0.00028,120]
[338302560,1726487906859,500.0,0.00028,120]
[338302561,1726487907041,500.0,0.00028,120]
[338302562,1726487907426,500.0,0.00028,120]
[338302563,1726487916553,500.0,0.00028,120]
[338302564,1726487917146,500.0,0.00028,120]
[338302565,1726487917206,500.0,0.00028,120]
[338302566,1726487918889,500.0,0.00028,120]
[338302567,1726487919767,500.0,0.00028,120]
[338302568,1726487920625,500.0,0.00028,120]
[338302569,1726487921474,500.0,0.00028,120]
[338302570,1726487922372,500.0,0.00028,120]
[338302571,1726487923202,500.0,0.00028,120]
[338302572,1726487923991,500.0,0.00028,120]
[338302573,1726487924923,500.0,0.00028,120]
[338302574,1726487925655,500.0,0.00028,120]
[338302575,1726487926590,500.0,0.00028,120]
[338302576,1726487928048,500.0,0.00028,120]
[338302577,1726487928124,500.0,0.00028,120]
[338302578,1726487929026,500.0,0.00028,120]
[338302579,1726487929135,500.0,0.00028,120]
[338302580,1726487929804,500.0,0.00028,120]
[338302581,1726487930360,500.0,0.00028,120]
[338302582,1726487930970,500.0,0.00028,120]
[338302583,1726487931299,500.0,0.00028,120]
[338302584,1726487931746,500.0,0.00028,120]
[338302585,1726487932176,500.0,0.00028,120]
[338302586,1726487941350,500.0,0.00028,120]
[338302587,1726487942684,500.0,0.00028,120]
[338302588,1726487943989,500.0,0.00028,120]
[338302589,1726487944947,500.0,0.00028,120]
[338302590,1726487945782,500.0,0.00028,120]
[338302591,1726487946698,500.0,0.00028,120]
[338302592,1726487947697,500.0,0.00028,120]
[338302593,1726487948580,500.0,0.00028,120]
[338302594,1726487949578,500.0,0.00028,120]
[338302595,1726487950639,500.0,0.00028,120]
[338302596,1726487953534,500.0,0.00028,120]
[338302597,1726487955062,500.0,0.00028,120]
[338302598,1726487956275,500.0,0.00028,120]
[338302599,1726487957153,500.0,0.00028,120]
[338302600,1726487958040,500.0,0.00028,120]
[338302601,1726487958983,500.0,0.00028,120]
[338302602,1726487960378,500.0,0.00028,120]
[338302603,1726487961483,500.0,0.00028,120]
[338302604,1726487962256,500.0,0.00028,120]
[338302605,1726487963168,500.0,0.00028,120]
[338302606,1726487969372,455.92,0.00011787,2]
[338302607,1726487970120,326.47446317,0.00028,120]
[338302609,1726488207353,2000.0,0.0002504,120]
[338302610,1726488207797,2000.0,0.00025968,120]
[338302611,1726488208616,2000.0,0.00026897,120]
[338302612,1726488208954,2000.0,0.00027826,120]
[338302613,1726488231854,500.0,0.00025252,120]
[338302614,1726488232345,500.0,0.00026539,120]
[338302615,1726488232888,500.0,0.00027826,120]
[338302616,1726488240142,500.0,0.00025636,120]
[338302617,1726488240559,500.0,0.00026366,120]
[338302618,1726488241150,500.0,0.00027096,120]
[338302619,1726488241627,500.0,0.00027826,120]
[338302620,1726488286364,400.0,0.00028,120]
[338302621,1726488324490,400.0,0.00028,120]
[338302623,1726488368390,510.0,0.00027397,120]
[338302624,1726488368889,289.83775632,0.00028,120]
[338302625,1726488368954,510.0,0.00027671,120]
[338302626,1726488369216,510.0,0.00027945,120]
[338302627,1726488488388,458.36,0.0001159,2]
[338302634,1726488612898,10000.0,0.00028,120]
[338302638,1726488632103,-223.9,0.0001328,2]
[338302639,1726488632113,-150.0,0.0001329,2]
[338302640,1726488632122,-150.0,0.0001329,2]
[338302641,1726488632132,-150.0,0.0001329,2]
[338302642,1726488632143,-150.0,0.0001329,2]
[338302643,1726488632153,-150.00000001,0.0001329,2]
[338302644,1726488632163,-6720.88683831,0.0001329,2]
[338302645,1726488632172,-1641.50514706,0.00013379,2]
[338302646,1726488632182,-223.9,0.00013469,2]
[338302647,1726488632191,-223.9,0.00013469,2]
[338302648,1726488632200,-223.9,0.00013469,2]
[338302649,1726488632210,-223.9,0.00013469,2]
[338302650,1726488632220,-223.9,0.00013469,2]
[338302651,1726488632230,-223.9,0.00013469,2]
[338302652,1726488632239,-223.9,0.00013469,2]
[338302653,1726488632249,-223.9,0.00013469,2]
[338302654,1726488632258,-223.9,0.00013469,2]
[338302656,1726488632268,-4869.27874398,0.00013479,2]
[338302658,1726488632280,-324.2343219,0.00013479,2]
[338302660,1726488632304,-1879.87854012,0.00013479,2]
[338302661,1726488632320,-6510.898581,0.00013479,2]
[338302667,1726488638122,-1079.0,0.00013479,2]
[338302825,1726488640010,-2591.50342102,0.00013479,2]
[338302827,1726488640022,-1428.791,0.00013479,2]
[338302837,1726488640171,-5216.41539198,0.00013479,2]
[338302838,1726488640181,-150.0,0.00013507,2]
[338302839,1726488640191,-150.22,0.00013507,2]
[338302840,1726488640201,-660.09,0.00013507,2]
[338302841,1726488640211,-500.0,0.00013523,2]
[338302842,1726488640222,-170.97,0.00013524,2]
[338302843,1726488640232,-239.07,0.00013524,2]
[338302844,1726488640242,-250.0,0.00013529,2]
[338302845,1726488640252,-250.0,0.00013538,2]
[338302846,1726488640261,-1014.43,0.00013577,2]
[338302847,1726488640271,-250.0,0.00013596,2]
[338302848,1726488640280,-499.99,0.00013647,2]
[338302849,1726488640290,-215.3,0.00013647,2]
[338302850,1726488640300,-150.0,0.0001366,2]
[338302851,1726488640310,-150.0,0.00013699,2]
[338302852,1726488640319,-175.8,0.00013724,2]
[338302853,1726488640330,-458.36,0.00013854,2]
[338302854,1726488640339,-150.0,0.00014029,2]
[338302855,1726488640349,-150.0,0.00014029,2]
[338302856,1726488640359,-150.0,0.00014029,2]
[338302857,1726488640368,-150.0,0.00014059,2]
[338302858,1726488640378,-5861.0,0.00014177,2]
[338302859,1726488640387,-150.0,0.00014177,2]
[338302860,1726488640397,-9823.965,0.00014177,2]
[338302861,1726488640406,-1146.0,0.00014177,2]
[338302862,1726488640415,-1079.0,0.00014177,2]
[338302863,1726488640425,-1547.0,0.00014318,2]
[338302864,1726488640434,-448.0,0.00014318,2]
[338302865,1726488640443,-624.0,0.00014318,2]
[338302866,1726488640453,-1261.0,0.00014318,2]
[338302867,1726488640462,-1901.0,0.00014318,2]
[338302869,1726488640473,-553.0,0.00014318,2]
[338302872,1726488640727,-248.0,0.00014318,2]
[338302873,1726488640755,-1922.0,0.00014318,2]
[338302874,1726488640765,-806.0,0.00014318,2]
[338302875,1726488640774,-3344.0,0.00014318,2]
[338302876,1726488640783,-150.0,0.00014398,2]
[338302877,1726488640792,-150.0,0.0001442,2]
[338302878,1726488640805,-500.0,0.00014521,2]
[338302879,1726488640814,-150.0,0.00014522,2]
[338302880,1726488640823,-150.0,0.00014524,2]
[338302881,1726488640832,-150.0,0.00014542,2]
[338302883,1726488640842,-395.15499413,0.00014548,2]
[338302884,1726488640851,-168.71903338,0.00014593,2]
[338302886,1726488640861,-260.9027,0.00014594,2]
[338302888,1726488640871,-1435.8697,0.00014594,2]
[338302890,1726488640881,-183.67029313,0.00014594,2]
[338302892,1726488640891,-150.0,0.00014618,2]
[338302894,1726488640900,-150.0,0.00014626,2]
[338302896,1726488640910,-150.0,0.00014638,2]
[338302898,1726488640919,-261.77419336,0.00014643,2]
[338302900,1726488640928,-150.0,0.00014644,2]
[338302902,1726488640938,-150.0,0.00014648,2]
[338302904,1726488640947,-1500.0,0.0001465,2]
[338302906,1726488640957,-302.76668,0.0001465,2]
[338302908,1726488640966,-500.0,0.00014676,2]
[338302910,1726488640976,-150.0,0.00014686,2]
[338302912,1726488640986,-1000.0,0.00014694,2]
[338302914,1726488640995,-35091.6249,0.00014694,2]
[338302916,1726488641004,-1259.9875,0.00014694,2]
[338302918,1726488641013,-1079.3456,0.00014694,2]
[338302920,1726488641023,-1631.6351,0.00014694,2]
[338302921,1726488641033,-3124.069,0.00014694,2]
[338302923,1726488641042,-7500.0,0.00014694,2]
[338302925,1726488641052,-168.36798198,0.00014694,2]
[338302927,1726488641061,-158.50695912,0.00014694,2]
[338302929,1726488641070,-161.39575947,0.00014694,2]
[338302931,1726488641079,-164.99535302,0.00014694,2]
[338302933,1726488641089,-330.03791652,0.00014694,2]
[338302935,1726488641098,-1500.0,0.00014702,2]
[338302937,1726488641107,-150.0,0.00014706,2]
[338302939,1726488641117,-150.0,0.00014721,2]
[338302941,1726488641126,-150.0,0.00014725,2]
[338302942,1726488641136,-150.0,0.00014726,2]
[338302945,1726488641146,-500.0,0.00014732,2]
[338302946,1726488641155,-1500.0,0.00014733,2]
[338302949,1726488641164,-500.0,0.00014741,2]
[338302951,1726488641174,-158.50695909,0.00014746,2]
[338302953,1726488641183,-161.39575947,0.00014746,2]
[338302955,1726488641192,-500.0,0.0001475,2]
[338302957,1726488641203,-500.0,0.00014759,2]
[338302959,1726488641212,-150.0,0.00014767,2]
[338302961,1726488641222,-150.0,0.00014767,2]
[338302963,1726488641231,-150.0,0.00014767,2]
[338302965,1726488641241,-292.38079082,0.00014767,2]
[338302967,1726488641250,-500.0,0.00014768,2]
[338302969,1726488641260,-160.28037635,0.00014773,2]
[338302971,1726488641270,-158.78432062,0.00014773,2]
[338302973,1726488641279,-500.0,0.00014773,2]
[338302975,1726488641288,-159.13581729,0.00014773,2]
[338302977,1726488641297,-200.53713222,0.00014773,2]
[338302979,1726488641307,-495.60950826,0.00014773,2]
[338302981,1726488641316,-453.4592915,0.00014773,2]
[338302983,1726488641326,-500.0,0.00014773,2]
[338302985,1726488641335,-500.0,0.00014776,2]
[338302987,1726488641344,-150.0,0.0001478,2]
[338302989,1726488641354,-150.0,0.00014784,2]
[338302990,1726488641363,-500.0,0.00014785,2]
[338302993,1726488641373,-623.30837792,0.00014793,2]
[338302995,1726488641382,-508.0,0.00014794,2]
[338302996,1726488641391,-183.27986242,0.00014794,2]
[338302998,1726488641401,-2599.28182957,0.00014794,2]
[338303001,1726488641410,-472.73813241,0.00014794,2]
[338303003,1726488641420,-500.0,0.00014794,2]
[338303005,1726488641430,-500.0,0.00014794,2]
[338303006,1726488641439,-500.0,0.00014794,2]
[338303008,1726488641448,-500.0,0.00014794,2]
[338303010,1726488641458,-500.0,0.00014794,2]
[338303012,1726488641467,-269.28,0.00014794,2]
[338303014,1726488641477,-500.0,0.00014794,2]
[338303017,1726488641487,-500.0,0.00014794,2]
[338303019,1726488641496,-500.0,0.00014794,2]
[338303020,1726488641506,-500.0,0.00014794,2]
[338303022,1726488641515,-500.0,0.00014794,2]
[338303024,1726488641525,-500.0,0.00014794,2]
[338303026,1726488641534,-500.0,0.00014794,2]
[338303028,1726488641544,-500.0,0.00014794,2]
[338303030,1726488641554,-500.0,0.00014794,2]
[338303032,1726488641564,-500.0,0.00014794,2]
[338303034,1726488641573,-500.0,0.00014794,2]
[338303036,1726488641583,-500.0,0.00014794,2]
[338303039,1726488641593,-500.0,0.00014794,2]
[338303041,1726488641603,-500.0,0.00014794,2]
[338303043,1726488641612,-500.0,0.00014794,2]
[338303044,1726488641622,-500.0,0.00014794,2]
[338303046,1726488641631,-463.92,0.00014794,2]
[338303048,1726488641641,-500.0,0.00014794,2]
[338303051,1726488641651,-500.0,0.00014794,2]
[338303052,1726488641660,-520.97,0.00014794,2]
[338303055,1726488641670,-500.0,0.00014794,2]
[338303056,1726488641679,-520.97,0.00014794,2]
[338303059,1726488641689,-500.0,0.00014794,2]
[338303061,1726488641699,-520.97,0.00014794,2]
[338303063,1726488641708,-500.0,0.00014794,2]
[338303065,1726488641718,-520.97,0.00014794,2]
[338303067,1726488641727,-520.97,0.00014794,2]
[338303069,1726488641737,-500.0,0.00014794,2]
[338303071,1726488641746,-520.97,0.00014794,2]
[338303073,1726488641756,-500.0,0.00014794,2]
[338303074,1726488641765,-520.97,0.00014794,2]
[338303077,1726488641775,-520.97,0.00014794,2]
[338303079,1726488641785,-500.0,0.00014794,2]
[338303081,1726488641795,-520.97,0.00014794,2]
[338303083,1726488641804,-500.0,0.00014794,2]
[338303085,1726488641814,-520.97,0.00014794,2]
[338303087,1726488641823,-500.0,0.00014794,2]
[338303088,1726488641832,-520.97,0.00014794,2]
[338303090,1726488641841,-500.0,0.00014794,2]
[338303092,1726488641851,-520.97,0.00014794,2]
[338303094,1726488641860,-500.0,0.00014794,2]
[338303096,1726488641870,-520.97,0.00014794,2]
[338303098,1726488641879,-500.0,0.00014794,2]
[338303100,1726488641889,-520.97,0.00014794,2]
[338303102,1726488641898,-500.0,0.00014794,2]
[338303104,1726488641908,-520.97,0.00014794,2]
[338303106,1726488641917,-500.0,0.00014794,2]
[338303108,1726488641926,-520.97,0.00014794,2]
[338303110,1726488641936,-500.0,0.00014794,2]
[338303112,1726488641946,-520.97,0.00014794,2]
[338303114,1726488641956,-500.0,0.00014794,2]
[338303116,1726488641965,-520.97,0.00014794,2]
[338303118,1726488641976,-486.44,0.00014794,2]
[338303120,1726488641986,-520.97,0.00014794,2]
[338303121,1726488641995,-520.97,0.00014794,2]
[338303123,1726488642005,-520.97,0.00014794,2]
[338303125,1726488642015,-520.97,0.00014794,2]
[338303127,1726488642025,-520.97,0.00014794,2]
[338303129,1726488642035,-500.0,0.00014794,2]
[338303130,1726488642044,-520.97,0.00014794,2]
[338303132,1726488642054,-500.0,0.00014794,2]
[338303134,1726488642064,-500.0,0.00014794,2]
[338303136,1726488642076,-500.0,0.00014794,2]
[338303138,1726488642086,-500.0,0.00014794,2]
[338303140,1726488642096,-500.0,0.00014794,2]
[338303142,1726488642106,-500.0,0.00014794,2]
[338303144,1726488642116,-500.0,0.00014794,2]
[338303146,1726488642125,-500.0,0.00014794,2]
[338303148,1726488642135,-500.0,0.00014794,2]
[338303150,1726488642145,-500.0,0.00014794,2]
[338303152,1726488642154,-500.0,0.00014794,2]
[338303154,1726488642164,-524.37,0.00014794,2]
[338303155,1726488642173,-500.0,0.00014794,2]
[338303157,1726488642182,-500.0,0.00014794,2]
[338303159,1726488642192,-500.0,0.00014794,2]
[338303161,1726488642202,-500.0,0.00014794,2]
[338303163,1726488642212,-500.0,0.00014794,2]
[338303165,1726488642222,-500.0,0.00014794,2]
[338303167,1726488642232,-500.0,0.00014794,2]
[338303169,1726488642241,-500.0,0.00014794,2]
[338303171,1726488642251,-500.0,0.00014794,2]
[338303173,1726488642261,-500.0,0.00014794,2]
[338303175,1726488642271,-500.0,0.00014794,2]
[338303177,1726488642280,-500.0,0.00014794,2]
[338303179,1726488642290,-500.0,0.00014794,2]
[338303181,1726488642299,-500.0,0.00014794,2]
[338303183,1726488642308,-500.0,0.00014794,2]
[338303185,1726488642318,-500.0,0.00014794,2]
[338303187,1726488642327,-500.0,0.00014794,2]
[338303189,1726488642337,-488.52,0.00014794,2]
[338303191,1726488642346,-500.0,0.00014794,2]
[338303192,1726488642356,-500.0,0.00014794,2]
[338303194,1726488642366,-500.0,0.00014794,2]
[338303196,1726488642376,-500.0,0.00014794,2]
[338303198,1726488642386,-500.0,0.00014794,2]
[338303200,1726488642395,-500.0,0.00014794,2]
[338303202,1726488642405,-500.0,0.00014794,2]
[338303204,1726488642415,-500.0,0.00014794,2]
[338303206,1726488642424,-240.28,0.00014794,2]
[338303208,1726488642434,-500.0,0.00014794,2]
[338303210,1726488642443,-500.0,0.00014794,2]
[338303212,1726488642452,-500.0,0.00014794,2]
[338303214,1726488642462,-618.23,0.00014794,2]
[338303216,1726488642473,-500.0,0.00014794,2]
[338303218,1726488642483,-500.0,0.00014794,2]
[338303220,1726488642493,-500.0,0.00014794,2]
[338303222,1726488642503,-500.0,0.00014794,2]
[338303224,1726488642513,-584.29,0.00014794,2]
[338303226,1726488642524,-584.29,0.00014794,2]
[338303228,1726488642533,-584.29,0.00014794,2]
[338303230,1726488642543,-584.29,0.00014794,2]
[338303232,1726488642553,-584.29,0.00014794,2]
[338303234,1726488642563,-584.29,0.00014794,2]
[338303236,1726488642573,-584.29,0.00014794,2]
[338303238,1726488642583,-584.29,0.00014794,2]
[338303240,1726488642592,-584.29,0.00014794,2]
[338303241,1726488642602,-584.29,0.00014794,2]
[338303243,1726488642612,-584.29,0.00014794,2]
[338303245,1726488642623,-584.29,0.00014794,2]
[338303247,1726488642633,-584.29,0.00014794,2]
[338303249,1726488642642,-584.29,0.00014794,2]
[338303251,1726488642652,-584.29,0.00014794,2]
[338303253,1726488642663,-584.29,0.00014794,2]
[338303255,1726488642673,-584.29,0.00014794,2]
[338303257,1726488642683,-584.29,0.00014794,2]
[338303259,1726488642692,-584.29,0.00014794,2]
[338303261,1726488642702,-584.29,0.00014794,2]
[338303263,1726488642712,-584.29,0.00014794,2]
[338303265,1726488642724,-584.29,0.00014794,2]
[338303267,1726488642734,-584.29,0.00014794,2]
[338303269,1726488642744,-584.44424061,0.00014794,2]
[338303271,1726488642754,-500.0,0.00014794,2]